[Event "Late-Titled-Tuesday-Blitz-June-25-2024"]
[Site "Chess.com"]
[Date "2024.06.25"]
[Round "1"]
[White "Alblooshi_Hamad"]
[Black "WilsonPalencia21"]
[Result "0-1"]
[WhiteElo "2280"]
[BlackElo "2606"]
[TimeControl "180+1"]
[EndTime "14:05:20 PDT"]
[Termination "WilsonPalencia21 won by resignation"]

1. d4 {[%clk 0:03:00.9]} 1... Nf6 {[%clk 0:02:59.7]} 2. c4 {[%clk 0:03:00.5]}
2... c5 {[%clk 0:03:00.1]} 3. d5 {[%clk 0:03:00.1]} 3... g6 {[%clk 0:03:00.4]}
4. Nc3 {[%clk 0:02:59.4]} 4... Bg7 {[%clk 0:03:00.9]} 5. e4 {[%clk 0:02:59.9]}
5... d6 {[%clk 0:03:01.4]} 6. f4 {[%clk 0:02:57.7]} 6... O-O {[%clk 0:03:01.5]}
7. Nf3 {[%clk 0:02:55.7]} 7... e6 {[%clk 0:03:01.9]} 8. Be2 {[%clk 0:02:53.8]}
8... exd5 {[%clk 0:03:02.2]} 9. cxd5 {[%clk 0:02:54.7]} 9... a6 {[%clk 0:03:02]}
10. a4 {[%clk 0:02:55.2]} 10... Bg4 {[%clk 0:03:01.3]} 11. Bd2 {[%clk
0:02:52.3]} 11... Nbd7 {[%clk 0:02:59.4]} 12. O-O {[%clk 0:02:51.5]} 12... Re8
{[%clk 0:02:59.3]} 13. h3 {[%clk 0:02:48.5]} 13... Bxf3 {[%clk 0:02:58.9]} 14.
Bxf3 {[%clk 0:02:49.4]} 14... c4 {[%clk 0:02:58.8]} 15. Be3 {[%clk 0:02:46.4]}
15... Rc8 {[%clk 0:02:43.4]} 16. Bd4 {[%clk 0:02:41.8]} 16... Nc5 {[%clk
0:02:34.2]} 17. Bxc5 {[%clk 0:02:36.9]} 17... Rxc5 {[%clk 0:02:32.9]} 18. Re1
{[%clk 0:02:36.5]} 18... Nd7 {[%clk 0:02:31.6]} 19. a5 {[%clk 0:02:26.9]} 19...
Rxa5 {[%clk 0:02:29.5]} 20. Rxa5 {[%clk 0:02:21]} 20... Qxa5 {[%clk 0:02:25.3]}
21. Qc2 {[%clk 0:02:12.5]} 21... b5 {[%clk 0:02:21.4]} 22. Ne2 {[%clk
0:02:09.4]} 22... Qb4 {[%clk 0:02:16.7]} 23. Rb1 {[%clk 0:02:00.6]} 23... Nc5
{[%clk 0:02:09]} 24. Nc3 {[%clk 0:01:57.2]} 24... Qb3 {[%clk 0:02:07]} 25. Qxb3
{[%clk 0:01:54.6]} 25... Nxb3 {[%clk 0:01:58.9]} 26. Re1 {[%clk 0:01:46.3]}
26... Bxc3 {[%clk 0:01:55]} 27. bxc3 {[%clk 0:01:47.2]} 27... a5 {[%clk
0:01:53.7]} 28. e5 {[%clk 0:01:47.6]} 28... a4 {[%clk 0:01:51.6]} 29. e6 {[%clk
0:01:44.1]} 29... a3 {[%clk 0:01:47.9]} 30. Re2 {[%clk 0:01:36]} 30... f5 {[%clk
0:01:46]} 31. Ra2 {[%clk 0:01:32.5]} 31... Ra8 {[%clk 0:01:43.4]} 32. g4 {[%clk
0:01:32.2]} 32... Kf8 {[%clk 0:01:39]} 33. gxf5 {[%clk 0:01:32.2]} 33... gxf5
{[%clk 0:01:38.5]} 34. Bd1 {[%clk 0:01:29.4]} 34... Nc1 {[%clk 0:01:35.7]} 35.
Ra1 {[%clk 0:01:29.8]} 35... a2 {[%clk 0:01:35.8]} 36. e7+ {[%clk 0:01:12]}
36... Kxe7 {[%clk 0:01:34.8]} 37. Bc2 {[%clk 0:01:09.9]} 37... Kf6 {[%clk
0:01:31.5]} 38. Kf2 {[%clk 0:01:05.7]} 38... Nb3 {[%clk 0:01:30.8]} 39. Re1
{[%clk 0:01:02.2]} 39... a1=Q {[%clk 0:01:28.7]} 40. Re6+ {[%clk 0:01:02.7]}
40... Kf7 {[%clk 0:01:28.4]} 41. Bxf5 {[%clk 0:01:03.2]} 41... Qxc3 {[%clk
0:01:27.9]} 0-1

[Event "Late-Titled-Tuesday-Blitz-June-25-2024"]
[Site "Chess.com"]
[Date "2024.06.25"]
[Round "1"]
[White "Mikhail_Golubev"]
[Black "Chessdude1987"]
[Result "1-0"]
[WhiteElo "2655"]
[BlackElo "2370"]
[TimeControl "180+1"]
[EndTime "14:05:22 PDT"]
[Termination "Mikhail_Golubev won by resignation"]

1. e4 {[%clk 0:03:00.9]} 1... e6 {[%clk 0:03:00.1]} 2. d4 {[%clk 0:02:59.7]}
2... d5 {[%clk 0:03:00.3]} 3. e5 {[%clk 0:03:00.2]} 3... c5 {[%clk 0:02:59.8]}
4. c3 {[%clk 0:03:00.4]} 4... Nc6 {[%clk 0:03:00.2]} 5. Nf3 {[%clk 0:03:00.5]}
5... Qb6 {[%clk 0:03:00.7]} 6. Bd3 {[%clk 0:03:00.1]} 6... Nh6 {[%clk
0:02:54.2]} 7. O-O {[%clk 0:02:56]} 7... cxd4 {[%clk 0:02:53.8]} 8. cxd4 {[%clk
0:02:49]} 8... Nf5 {[%clk 0:02:54.1]} 9. Nc3 {[%clk 0:02:35.1]} 9... Nfxd4
{[%clk 0:02:42.5]} 10. Nxd4 {[%clk 0:02:34.2]} 10... Qxd4 {[%clk 0:02:41.8]} 11.
Nb5 {[%clk 0:02:29.6]} 11... Qb6 {[%clk 0:02:04.6]} 12. Re1 {[%clk 0:02:28.8]}
12... Be7 {[%clk 0:01:54.5]} 13. Qg4 {[%clk 0:02:13.6]} 13... Kf8 {[%clk
0:01:40.3]} 14. Be3 {[%clk 0:01:49.8]} 14... Qd8 {[%clk 0:01:38.9]} 15. Qg3
{[%clk 0:01:39]} 15... Bd7 {[%clk 0:01:23.4]} 16. Nd6 {[%clk 0:01:33.9]} 16...
Bxd6 {[%clk 0:01:09.5]} 17. exd6 {[%clk 0:01:34.8]} 17... e5 {[%clk 0:01:09.7]}
18. Rac1 {[%clk 0:01:28.8]} 18... f6 {[%clk 0:01:00.3]} 19. f4 {[%clk
0:01:12.2]} 19... d4 {[%clk 0:00:54.4]} 20. Bd2 {[%clk 0:01:03.9]} 20... a5
{[%clk 0:00:41.6]} 21. fxe5 {[%clk 0:01:03.5]} 21... Nxe5 {[%clk 0:00:41.2]} 22.
Rxe5 {[%clk 0:01:01.8]} 22... fxe5 {[%clk 0:00:41.3]} 23. Rf1+ {[%clk
0:01:00.4]} 1-0

[Event "Late-Titled-Tuesday-Blitz-June-25-2024"]
[Site "Chess.com"]
[Date "2024.06.25"]
[Round "1"]
[White "Arysya"]
[Black "giomar27"]
[Result "1-0"]
[WhiteElo "2836"]
[BlackElo "2479"]
[TimeControl "180+1"]
[EndTime "14:05:27 PDT"]
[Termination "Arysya won by resignation"]

1. e4 {[%clk 0:03:00.9]} 1... e5 {[%clk 0:02:57.8]} 2. Nf3 {[%clk 0:03:00.9]}
2... Nc6 {[%clk 0:02:58.4]} 3. Nc3 {[%clk 0:03:01.7]} 3... Nf6 {[%clk
0:02:58.5]} 4. g3 {[%clk 0:03:02.6]} 4... d5 {[%clk 0:02:58.4]} 5. exd5 {[%clk
0:03:03.5]} 5... Nxd5 {[%clk 0:02:59.3]} 6. Bg2 {[%clk 0:03:04]} 6... Nxc3
{[%clk 0:02:59.7]} 7. bxc3 {[%clk 0:03:04.9]} 7... Bc5 {[%clk 0:02:59.8]} 8. O-O
{[%clk 0:03:05.3]} 8... O-O {[%clk 0:03:00.2]} 9. d3 {[%clk 0:03:05.8]} 9... Bg4
{[%clk 0:03:00.6]} 10. Qe1 {[%clk 0:03:05.8]} 10... Re8 {[%clk 0:02:55.1]} 11.
Qe4 {[%clk 0:03:05.9]} 11... Bh5 {[%clk 0:02:47.6]} 12. Nh4 {[%clk 0:03:05.4]}
12... Qd7 {[%clk 0:02:27.9]} 13. a4 {[%clk 0:03:03.3]} 13... Bg4 {[%clk
0:02:24.5]} 14. a5 {[%clk 0:02:59.9]} 14... a6 {[%clk 0:02:22.5]} 15. Be3 {[%clk
0:02:59.3]} 15... Bd6 {[%clk 0:02:18.5]} 16. Qa4 {[%clk 0:02:54.7]} 16... Bh3
{[%clk 0:02:13.1]} 17. Rab1 {[%clk 0:02:51.4]} 17... Bxg2 {[%clk 0:02:11.5]} 18.
Kxg2 {[%clk 0:02:52.3]} 18... Rab8 {[%clk 0:02:10.2]} 19. Nf3 {[%clk 0:02:48.6]}
19... f5 {[%clk 0:02:09.1]} 20. Rfe1 {[%clk 0:02:45.3]} 20... Qf7 {[%clk
0:02:01.6]} 21. Rxb7 {[%clk 0:02:34.5]} 21... Rxb7 {[%clk 0:01:56.3]} 22. Qxc6
{[%clk 0:02:35.1]} 22... Rbb8 {[%clk 0:01:51.4]} 23. Ng5 {[%clk 0:02:28.6]}
23... Qg6 {[%clk 0:01:47.2]} 24. Bd2 {[%clk 0:01:19.2]} 24... h6 {[%clk
0:01:38.9]} 25. Qc4+ {[%clk 0:01:18.3]} 25... Kf8 {[%clk 0:01:38.8]} 26. Nf3
{[%clk 0:01:18.9]} 26... Rb5 {[%clk 0:01:31.2]} 27. Qc6 {[%clk 0:01:14.4]} 27...
Rxa5 {[%clk 0:01:26.7]} 28. c4 {[%clk 0:01:13.5]} 28... Ra2 {[%clk 0:01:26.6]}
29. Nxe5 {[%clk 0:01:06.8]} 29... Qh5 {[%clk 0:00:47.5]} 30. Nd7+ {[%clk
0:01:06.7]} 30... Kg8 {[%clk 0:00:47.7]} 31. Rxe8+ {[%clk 0:01:07.3]} 1-0

[Event "Late-Titled-Tuesday-Blitz-June-25-2024"]
[Site "Chess.com"]
[Date "2024.06.25"]
[Round "1"]
[White "FLYD"]
[Black "KoshkaMatrioshka"]
[Result "0-1"]
[WhiteElo "2125"]
[BlackElo "2553"]
[TimeControl "180+1"]
[EndTime "14:05:30 PDT"]
[Termination "KoshkaMatrioshka won by checkmate"]

1. e4 {[%clk 0:03:00.9]} 1... e6 {[%clk 0:03:00.4]} 2. d4 {[%clk 0:02:59.8]}
2... d5 {[%clk 0:03:00.8]} 3. Nc3 {[%clk 0:02:59.4]} 3... Bb4 {[%clk 0:03:00.5]}
4. e5 {[%clk 0:02:59.5]} 4... c5 {[%clk 0:03:00.8]} 5. a3 {[%clk 0:03:00.1]}
5... Bxc3+ {[%clk 0:03:01.3]} 6. bxc3 {[%clk 0:03:00.2]} 6... Qa5 {[%clk
0:03:02]} 7. Bd2 {[%clk 0:02:53.5]} 7... Qa4 {[%clk 0:03:02.1]} 8. Qg4 {[%clk
0:02:53.6]} 8... g6 {[%clk 0:03:01.8]} 9. h4 {[%clk 0:02:50.4]} 9... h6 {[%clk
0:02:59.8]} 10. Rh3 {[%clk 0:02:46.7]} 10... Nc6 {[%clk 0:02:57.6]} 11. Nf3
{[%clk 0:02:42.9]} 11... c4 {[%clk 0:02:54.9]} 12. Kd1 {[%clk 0:02:21.4]} 12...
Bd7 {[%clk 0:02:53.3]} 13. h5 {[%clk 0:02:19.1]} 13... g5 {[%clk 0:02:52.9]} 14.
Ng1 {[%clk 0:02:14.4]} 14... f5 {[%clk 0:02:52.2]} 15. exf6 {[%clk 0:02:05.6]}
15... Nxf6 {[%clk 0:02:52.5]} 16. Qe2 {[%clk 0:02:04.9]} 16... O-O-O {[%clk
0:02:47.4]} 17. Nf3 {[%clk 0:02:03.2]} 17... g4 {[%clk 0:02:45.6]} 18. Rg3
{[%clk 0:01:53.7]} 18... gxf3 {[%clk 0:02:44.7]} 19. Rxf3 {[%clk 0:01:54.2]}
19... Ne4 {[%clk 0:02:44.5]} 20. Re3 {[%clk 0:01:43.2]} 20... Rdf8 {[%clk
0:02:40]} 21. f3 {[%clk 0:01:43.2]} 21... Ng3 {[%clk 0:02:39.3]} 22. Qf2 {[%clk
0:01:43.4]} 22... Nxf1 {[%clk 0:02:39.3]} 23. Qxf1 {[%clk 0:01:44.2]} 23... Ne7
{[%clk 0:02:31]} 24. g4 {[%clk 0:01:40.3]} 24... Rhg8 {[%clk 0:02:28.3]} 25. Qg2
{[%clk 0:01:28.2]} 25... Nf5 {[%clk 0:02:25]} 26. Re5 {[%clk 0:01:25.4]} 26...
Nh4 {[%clk 0:02:24.7]} 27. Qe2 {[%clk 0:01:21.4]} 27... Nxf3 {[%clk 0:02:24.1]}
28. Bxh6 {[%clk 0:01:20.2]} 28... Nxe5 {[%clk 0:02:18.3]} 29. Bxf8 {[%clk
0:01:20]} 29... Rxf8 {[%clk 0:02:19.2]} 30. dxe5 {[%clk 0:01:15.1]} 30... Qa5
{[%clk 0:02:18.4]} 31. Kd2 {[%clk 0:01:13.4]} 31... Qd8 {[%clk 0:02:16.8]} 32.
Rh1 {[%clk 0:01:02.4]} 32... Qg5+ {[%clk 0:02:16.3]} 33. Kd1 {[%clk 0:01:01.7]}
33... d4 {[%clk 0:01:51.1]} 34. Qxc4+ {[%clk 0:00:54.2]} 34... Kb8 {[%clk
0:01:44.5]} 35. Qxd4 {[%clk 0:00:54.6]} 35... Rd8 {[%clk 0:01:42.2]} 36. Ke1
{[%clk 0:00:48.3]} 36... Bc6 {[%clk 0:01:41]} 37. Qg1 {[%clk 0:00:30.4]} 37...
Qxe5+ {[%clk 0:01:37.2]} 38. Kf2 {[%clk 0:00:29.2]} 38... Rd2+ {[%clk
0:01:37.3]} 39. Kf1 {[%clk 0:00:28.9]} 39... Qe2# {[%clk 0:01:37.5]} 0-1

[Event "Late-Titled-Tuesday-Blitz-June-25-2024"]
[Site "Chess.com"]
[Date "2024.06.25"]
[Round "1"]
[White "Meri-Arabidze"]
[Black "Nick12772"]
[Result "1-0"]
[WhiteElo "2693"]
[BlackElo "2397"]
[TimeControl "180+1"]
[EndTime "14:05:54 PDT"]
[Termination "Meri-Arabidze won by resignation"]

1. c4 {[%clk 0:03:00.9]} 1... Nf6 {[%clk 0:02:59.9]} 2. Nc3 {[%clk 0:03:00.6]}
2... d5 {[%clk 0:02:59.8]} 3. cxd5 {[%clk 0:02:59.8]} 3... Nxd5 {[%clk
0:03:00.7]} 4. e4 {[%clk 0:02:59.9]} 4... Nxc3 {[%clk 0:03:00.8]} 5. dxc3 {[%clk
0:03:00.8]} 5... Qxd1+ {[%clk 0:03:00.6]} 6. Kxd1 {[%clk 0:03:01.7]} 6... g6
{[%clk 0:03:00.4]} 7. Kc2 {[%clk 0:03:01.2]} 7... Bg7 {[%clk 0:03:00.8]} 8. Bf4
{[%clk 0:02:59.5]} 8... c6 {[%clk 0:02:59.4]} 9. h4 {[%clk 0:02:59.3]} 9... h5
{[%clk 0:02:59]} 10. f3 {[%clk 0:02:59.7]} 10... O-O {[%clk 0:02:58.5]} 11. Nh3
{[%clk 0:02:57.7]} 11... Bxh3 {[%clk 0:02:43.3]} 12. Rxh3 {[%clk 0:02:57.4]}
12... Nd7 {[%clk 0:02:41.7]} 13. Bc4 {[%clk 0:02:54.4]} 13... b5 {[%clk
0:02:36.8]} 14. Be2 {[%clk 0:02:49.7]} 14... Ne5 {[%clk 0:02:33.6]} 15. Rhh1
{[%clk 0:02:46.6]} 15... a5 {[%clk 0:02:29.7]} 16. g4 {[%clk 0:02:43.7]} 16...
hxg4 {[%clk 0:02:27.7]} 17. fxg4 {[%clk 0:02:43.6]} 17... b4 {[%clk 0:02:17.4]}
18. h5 {[%clk 0:02:43.1]} 18... bxc3 {[%clk 0:02:16.5]} 19. h6 {[%clk
0:02:31.1]} 19... Bf6 {[%clk 0:01:46.7]} 20. g5 {[%clk 0:02:30.6]} 20... cxb2
{[%clk 0:01:46.7]} 21. Rab1 {[%clk 0:02:30.4]} 21... Kh7 {[%clk 0:01:16.9]} 22.
gxf6 {[%clk 0:02:28.9]} 22... exf6 {[%clk 0:01:17.2]} 23. Rxb2 {[%clk
0:02:29.1]} 23... Rab8 {[%clk 0:01:13.6]} 24. Rhb1 {[%clk 0:02:20.5]} 24...
Rxb2+ {[%clk 0:01:12]} 25. Rxb2 {[%clk 0:02:21.4]} 25... g5 {[%clk 0:01:07.4]}
26. Bxe5 {[%clk 0:02:20.9]} 26... fxe5 {[%clk 0:01:08.3]} 27. Bg4 {[%clk
0:02:15.5]} 27... Rd8 {[%clk 0:00:53.6]} 28. Rb6 {[%clk 0:02:11.1]} 28... Rd6
{[%clk 0:00:50.5]} 29. Ra6 {[%clk 0:02:11]} 29... Kxh6 {[%clk 0:00:48.6]} 30.
Rxa5 {[%clk 0:02:10.9]} 30... Rf6 {[%clk 0:00:44.1]} 31. Rxe5 {[%clk 0:02:07]}
31... Rf2+ {[%clk 0:00:43.7]} 32. Kb3 {[%clk 0:02:07]} 32... Rf4 {[%clk
0:00:41.7]} 33. Bf5 {[%clk 0:02:03.6]} 33... g4 {[%clk 0:00:40.1]} 34. Re8
{[%clk 0:02:03.4]} 34... Kg7 {[%clk 0:00:34.8]} 35. Rd8 {[%clk 0:02:02.9]} 35...
g3 {[%clk 0:00:32.1]} 36. Rd1 {[%clk 0:02:01.9]} 36... Rf3+ {[%clk 0:00:24.1]}
37. Kb4 {[%clk 0:02:01.7]} 37... Rf2 {[%clk 0:00:19.1]} 38. a4 {[%clk
0:02:00.1]} 38... Rb2+ {[%clk 0:00:18.6]} 39. Ka3 {[%clk 0:01:59.3]} 39... Rc2
{[%clk 0:00:14.3]} 40. Rg1 {[%clk 0:01:55.9]} 40... g2 {[%clk 0:00:14.6]} 41. a5
{[%clk 0:01:53.5]} 41... Kf6 {[%clk 0:00:08.4]} 42. a6 {[%clk 0:01:53]} 42...
Rc5 {[%clk 0:00:06.8]} 43. Ka4 {[%clk 0:01:52.8]} 43... Rc2 {[%clk 0:00:04.2]}
44. Kb3 {[%clk 0:01:50.5]} 44... Rc5 {[%clk 0:00:03.6]} 45. Rxg2 {[%clk
0:01:50.7]} 45... Ra5 {[%clk 0:00:03.8]} 46. Ra2 {[%clk 0:01:50.5]} 1-0

[Event "Late-Titled-Tuesday-Blitz-June-25-2024"]
[Site "Chess.com"]
[Date "2024.06.25"]
[Round "1"]
[White "FredddieCroderg"]
[Black "Aryan_Tamadon"]
[Result "0-1"]
[WhiteElo "2349"]
[BlackElo "2641"]
[TimeControl "180+1"]
[EndTime "14:05:55 PDT"]
[Termination "Aryan_Tamadon won on time"]

1. e4 {[%clk 0:03:00.2]} 1... d5 {[%clk 0:02:55.8]} 2. e5 {[%clk 0:02:58.9]}
2... d4 {[%clk 0:02:51.2]} 3. Nf3 {[%clk 0:02:57.5]} 3... Bg4 {[%clk 0:02:48.8]}
4. Bc4 {[%clk 0:02:54.1]} 4... e6 {[%clk 0:02:41.2]} 5. d3 {[%clk 0:02:52.2]}
5... Nc6 {[%clk 0:02:33.7]} 6. h3 {[%clk 0:02:38.5]} 6... Bh5 {[%clk 0:02:25.8]}
7. O-O {[%clk 0:02:28.8]} 7... Nxe5 {[%clk 0:01:58.8]} 8. g4 {[%clk 0:02:27.6]}
8... Nxg4 {[%clk 0:01:59.4]} 9. hxg4 {[%clk 0:02:26.4]} 9... Bxg4 {[%clk
0:02:00.3]} 10. Bf4 {[%clk 0:02:18.7]} 10... Qf6 {[%clk 0:01:57.2]} 11. Bxc7
{[%clk 0:02:00.2]} 11... Bxf3 {[%clk 0:01:50.4]} 12. Bb5+ {[%clk 0:02:00.1]}
12... Ke7 {[%clk 0:01:39]} 13. Qd2 {[%clk 0:01:53.3]} 13... Qg6+ {[%clk
0:01:38.5]} 14. Bg3 {[%clk 0:01:49.5]} 14... Qh5 {[%clk 0:01:22.5]} 15. Qb4+
{[%clk 0:01:38.5]} 15... Kf6 {[%clk 0:01:23]} 16. Qxd4+ {[%clk 0:01:35.8]} 16...
Kg6 {[%clk 0:01:23.5]} 17. Qh4 {[%clk 0:01:17.7]} 17... Qxb5 {[%clk 0:01:23.6]}
18. Nd2 {[%clk 0:01:03.6]} 18... Qh5 {[%clk 0:01:23.9]} 19. Nxf3 {[%clk
0:00:57.8]} 19... Qxf3 {[%clk 0:01:24.8]} 20. Rae1 {[%clk 0:00:54.9]} 20... Nf6
{[%clk 0:01:22.2]} 21. Re5 {[%clk 0:00:29.5]} 21... Qg4 {[%clk 0:01:22.2]} 22.
Qh1 {[%clk 0:00:21.5]} 22... Bd6 {[%clk 0:01:21.7]} 23. Re3 {[%clk 0:00:19.3]}
23... h5 {[%clk 0:01:21.9]} 24. Qg2 {[%clk 0:00:14.5]} 24... Bc5 {[%clk
0:01:18.4]} 25. Rf3 {[%clk 0:00:09.3]} 25... h4 {[%clk 0:01:14.9]} 26. Rf4
{[%clk 0:00:09.1]} 26... Qg5 {[%clk 0:01:12.7]} 0-1

[Event "Late-Titled-Tuesday-Blitz-June-25-2024"]
[Site "Chess.com"]
[Date "2024.06.25"]
[Round "1"]
[White "smallbaba"]
[Black "HanSchut"]
[Result "1-0"]
[WhiteElo "2592"]
[BlackElo "2230"]
[TimeControl "180+1"]
[EndTime "14:05:57 PDT"]
[Termination "smallbaba won by resignation"]

1. e4 {[%clk 0:03:00.9]} 1... c5 {[%clk 0:02:56.2]} 2. Nc3 {[%clk 0:03:00.6]}
2... Nc6 {[%clk 0:02:55.6]} 3. Bb5 {[%clk 0:03:00.4]} 3... Nd4 {[%clk
0:02:54.9]} 4. Nf3 {[%clk 0:03:00.7]} 4... g6 {[%clk 0:02:53.4]} 5. Bc4 {[%clk
0:02:59.6]} 5... Bg7 {[%clk 0:02:50.9]} 6. Nxd4 {[%clk 0:03:00.1]} 6... cxd4
{[%clk 0:02:47.5]} 7. Qf3 {[%clk 0:03:00.5]} 7... e6 {[%clk 0:02:47]} 8. Nb5
{[%clk 0:02:56.4]} 8... d6 {[%clk 0:02:36.6]} 9. Qa3 {[%clk 0:02:54.6]} 9... Bf8
{[%clk 0:02:29.7]} 10. Nxd4 {[%clk 0:02:54.4]} 10... d5 {[%clk 0:02:26.9]} 11.
Bb5+ {[%clk 0:02:54.9]} 11... Bd7 {[%clk 0:02:25.6]} 12. Qd3 {[%clk 0:02:54.6]}
12... dxe4 {[%clk 0:02:17.4]} 13. Qxe4 {[%clk 0:02:51.2]} 13... a6 {[%clk
0:02:01]} 14. Bxd7+ {[%clk 0:02:39.3]} 14... Qxd7 {[%clk 0:02:01.2]} 15. Qe5
{[%clk 0:02:39.8]} 15... f6 {[%clk 0:01:14.9]} 16. Qxe6+ {[%clk 0:02:38.6]}
16... Qxe6+ {[%clk 0:01:09.5]} 17. Nxe6 {[%clk 0:02:39.5]} 17... Bd6 {[%clk
0:01:08.5]} 18. O-O {[%clk 0:02:39.6]} 18... Kf7 {[%clk 0:01:08.4]} 19. Nd4
{[%clk 0:02:38.7]} 19... Rd8 {[%clk 0:01:05]} 20. c3 {[%clk 0:02:38.2]} 20...
Ne7 {[%clk 0:01:04.5]} 21. Nf3 {[%clk 0:02:32.7]} 21... Rhe8 {[%clk 0:01:01.2]}
22. d4 {[%clk 0:02:32.8]} 22... g5 {[%clk 0:00:59.2]} 23. Bd2 {[%clk 0:02:30.5]}
23... b5 {[%clk 0:00:55.2]} 24. Ne1 {[%clk 0:02:28.4]} 24... h5 {[%clk
0:00:53.9]} 25. Nd3 {[%clk 0:02:28.4]} 25... h4 {[%clk 0:00:48.9]} 26. f4 {[%clk
0:02:27.8]} 26... g4 {[%clk 0:00:47.1]} 27. Ne5+ {[%clk 0:02:23.4]} 27... fxe5
{[%clk 0:00:36.2]} 28. fxe5+ {[%clk 0:02:24.3]} 28... Kg7 {[%clk 0:00:30.6]} 29.
exd6 {[%clk 0:02:24.3]} 29... Rxd6 {[%clk 0:00:31.5]} 30. Rae1 {[%clk
0:02:23.9]} 30... Rf6 {[%clk 0:00:21.8]} 31. Rxf6 {[%clk 0:02:11.5]} 31... Kxf6
{[%clk 0:00:21.7]} 32. Re5 {[%clk 0:02:12]} 32... Rg8 {[%clk 0:00:14.3]} 33. Be1
{[%clk 0:02:00.7]} 33... Nf5 {[%clk 0:00:13.7]} 34. Rc5 {[%clk 0:01:53.9]} 34...
h3 {[%clk 0:00:12.5]} 35. Rc6+ {[%clk 0:01:53.7]} 35... Kg5 {[%clk 0:00:12.4]}
36. Bd2+ {[%clk 0:01:53.1]} 36... Kh5 {[%clk 0:00:10]} 37. Rxa6 {[%clk 0:01:52]}
37... hxg2 {[%clk 0:00:09.8]} 38. Rf6 {[%clk 0:01:48.4]} 38... g3 {[%clk
0:00:03.6]} 39. Rxf5+ {[%clk 0:01:46.9]} 39... Kg4 {[%clk 0:00:04.5]} 40. Rf4+
{[%clk 0:01:46.1]} 40... Kh3 {[%clk 0:00:02.8]} 41. hxg3 {[%clk 0:01:41.9]}
41... Rxg3 {[%clk 0:00:03.7]} 1-0

[Event "Late-Titled-Tuesday-Blitz-June-25-2024"]
[Site "Chess.com"]
[Date "2024.06.25"]
[Round "1"]
[White "AldokhinIvan"]
[Black "Zapateado"]
[Result "1-0"]
[WhiteElo "2658"]
[BlackElo "2375"]
[TimeControl "180+1"]
[EndTime "14:05:59 PDT"]
[Termination "AldokhinIvan won by resignation"]

1. e4 {[%clk 0:02:52.5]} 1... c5 {[%clk 0:02:43.4]} 2. Nf3 {[%clk 0:02:50.4]}
2... g6 {[%clk 0:02:31.1]} 3. d4 {[%clk 0:02:49.8]} 3... cxd4 {[%clk 0:02:14.1]}
4. Nxd4 {[%clk 0:02:50.7]} 4... Nc6 {[%clk 0:02:14]} 5. Nc3 {[%clk 0:02:50.9]}
5... Bg7 {[%clk 0:02:05.8]} 6. Be3 {[%clk 0:02:51.5]} 6... Nf6 {[%clk
0:01:54.2]} 7. Bc4 {[%clk 0:02:51.4]} 7... O-O {[%clk 0:01:35.1]} 8. Bb3 {[%clk
0:02:49.6]} 8... a5 {[%clk 0:01:35.2]} 9. f3 {[%clk 0:02:48.8]} 9... d5 {[%clk
0:01:27.5]} 10. exd5 {[%clk 0:02:34.2]} 10... Nb4 {[%clk 0:01:26.6]} 11. Nde2
{[%clk 0:02:08.1]} 11... Bf5 {[%clk 0:01:14.5]} 12. g4 {[%clk 0:01:38]} 12... a4
{[%clk 0:00:47.4]} 13. Nxa4 {[%clk 0:01:17.8]} 13... Nfxd5 {[%clk 0:00:33]} 14.
Bd4 {[%clk 0:01:12.7]} 14... e5 {[%clk 0:00:21.1]} 15. Bc5 {[%clk 0:01:06.6]}
15... Qh4+ {[%clk 0:00:12.9]} 16. Bf2 {[%clk 0:01:04.3]} 16... Qh3 {[%clk
0:00:06.2]} 17. gxf5 {[%clk 0:00:53.2]} 17... Qxf3 {[%clk 0:00:05.4]} 18. Ng3
{[%clk 0:00:49.3]} 18... Ne3 {[%clk 0:00:04.8]} 19. Qxf3 {[%clk 0:00:48]} 1-0

[Event "Late-Titled-Tuesday-Blitz-June-25-2024"]
[Site "Chess.com"]
[Date "2024.06.25"]
[Round "1"]
[White "Incognizance"]
[Black "guillembaches"]
[Result "0-1"]
[WhiteElo "1966"]
[BlackElo "2540"]
[TimeControl "180+1"]
[EndTime "14:06:05 PDT"]
[Termination "guillembaches won by resignation"]

1. d4 {[%clk 0:03:00.9]} 1... Nf6 {[%clk 0:02:59]} 2. c4 {[%clk 0:03:00.8]} 2...
e6 {[%clk 0:02:59.3]} 3. Nf3 {[%clk 0:03:00.3]} 3... d5 {[%clk 0:02:59.4]} 4.
Bg5 {[%clk 0:02:59.7]} 4... Be7 {[%clk 0:02:53.6]} 5. e3 {[%clk 0:02:59]} 5...
h6 {[%clk 0:02:53.3]} 6. Bh4 {[%clk 0:02:58.7]} 6... O-O {[%clk 0:02:52.8]} 7.
Nc3 {[%clk 0:02:58]} 7... b6 {[%clk 0:02:52.7]} 8. Rc1 {[%clk 0:02:57.3]} 8...
Bb7 {[%clk 0:02:51.8]} 9. cxd5 {[%clk 0:02:54.6]} 9... exd5 {[%clk 0:02:47.3]}
10. Bd3 {[%clk 0:02:53.7]} 10... Nbd7 {[%clk 0:02:46.3]} 11. O-O {[%clk
0:02:52.7]} 11... c5 {[%clk 0:02:46.2]} 12. dxc5 {[%clk 0:02:52.8]} 12... bxc5
{[%clk 0:02:45.7]} 13. Re1 {[%clk 0:02:48]} 13... Re8 {[%clk 0:02:40.4]} 14. Ne2
{[%clk 0:02:36.6]} 14... Qb6 {[%clk 0:02:33.2]} 15. Qc2 {[%clk 0:02:28.3]} 15...
Bf8 {[%clk 0:02:27]} 16. Bg3 {[%clk 0:02:13.4]} 16... Ne4 {[%clk 0:02:17.5]} 17.
Bxe4 {[%clk 0:02:07.1]} 17... Rxe4 {[%clk 0:02:07.4]} 18. Nc3 {[%clk 0:02:05.1]}
18... Ree8 {[%clk 0:02:02.6]} 19. Rcd1 {[%clk 0:02:05.1]} 19... Qe6 {[%clk
0:01:56.4]} 20. Qd3 {[%clk 0:01:56.8]} 20... c4 {[%clk 0:01:43.6]} 21. Qd2
{[%clk 0:01:53.3]} 21... Bb4 {[%clk 0:01:37.6]} 22. Nd4 {[%clk 0:01:48.9]} 22...
Qg6 {[%clk 0:01:31.1]} 23. Nde2 {[%clk 0:01:36.9]} 23... Nf6 {[%clk 0:01:22.5]}
24. Nf4 {[%clk 0:01:36.5]} 24... Qf5 {[%clk 0:01:22.5]} 25. Nfe2 {[%clk
0:01:31.4]} 25... Rad8 {[%clk 0:01:17]} 26. Nd4 {[%clk 0:01:31.4]} 26... Qg6
{[%clk 0:01:15.4]} 27. a3 {[%clk 0:01:31.1]} 27... Ne4 {[%clk 0:01:14.2]} 28.
Qc2 {[%clk 0:01:19]} 28... Bxc3 {[%clk 0:00:54.5]} 29. bxc3 {[%clk 0:01:18.6]}
29... f5 {[%clk 0:00:48.8]} 30. Rb1 {[%clk 0:01:14.6]} 30... Ba8 {[%clk
0:00:44.5]} 31. Nxf5 {[%clk 0:00:56.9]} 31... Qxf5 {[%clk 0:00:41]} 32. f3
{[%clk 0:00:57.3]} 32... Nxg3 {[%clk 0:00:39.3]} 33. Qxf5 {[%clk 0:00:52.9]}
33... Nxf5 {[%clk 0:00:39.4]} 34. Rb5 {[%clk 0:00:53]} 34... Nxe3 {[%clk
0:00:36.5]} 35. Kf2 {[%clk 0:00:51.4]} 35... Nc2 {[%clk 0:00:35.5]} 36. Rxe8+
{[%clk 0:00:51.2]} 36... Rxe8 {[%clk 0:00:35.6]} 37. Rxd5 {[%clk 0:00:52.1]} 0-1